fUSD/lending_fUSD_20240702
["ID","MTS","AMOUNT","RATE_DAILY","PERIOD"]
[330892069,1719917453454,-151.0,0.000223,7]
[330892070,1719917453463,-151.0,0.000223,7]
[330892071,1719917453472,-151.0,0.000223,7]
[330892072,1719917453483,-151.0,0.000223,7]
[330892073,1719917453492,-151.0,0.000223,7]
[330892074,1719917453501,-151.0,0.000223,7]
[330892075,1719917453510,-242.51673,0.000223,7]
[330892076,1719917453519,-242.51673,0.000223,7]
[330892077,1719917453528,-151.0,0.000223,7]
[330892078,1719917453538,-151.0,0.000223,7]
[330892079,1719917453547,-151.0,0.000223,7]
[330892080,1719917453556,-151.0,0.000223,7]
[330892081,1719917453565,-151.0,0.000223,7]
[330892082,1719917453574,-151.0,0.000223,7]
[330892083,1719917453583,-151.0,0.000223,7]
[330892084,1719917453592,-151.0,0.000223,7]
[330892085,1719917453602,-151.0,0.000223,7]
[330892086,1719917453611,-151.0,0.000223,7]
[330892087,1719917453620,-151.0,0.000223,7]
[330892088,1719917453630,-260.992561,0.000223,7]
[330892089,1719917453639,-260.992561,0.000223,7]
[330892090,1719917453648,-151.0,0.000223,7]
[330892091,1719917453658,-151.0,0.000223,7]
[330892092,1719917453667,-489.367079,0.000223,7]
[330892093,1719917453676,-151.0,0.000223,7]
[330892094,1719917453686,-489.367079,0.000223,7]
[330892095,1719917453695,-151.0,0.000223,7]
[330892096,1719917453711,-151.0,0.000223,7]
[330892097,1719917453720,-151.0,0.000223,7]
[330892098,1719917453731,-169.516921,0.000223,7]
[330892099,1719917453740,-169.516921,0.000223,7]
[330892100,1719917453750,-896.974823,0.000223,7]
[330892101,1719917453760,-151.0,0.000223,7]
[330892102,1719917453769,-354.538411,0.000223,7]
[330892103,1719917453779,-354.538411,0.000223,7]
[330892104,1719917453790,-151.0,0.000223,7]
[330892105,1719917453799,-200.970964,0.000223,7]
[330892106,1719917453808,-200.970964,0.000223,7]
[330892107,1719917453818,-151.0,0.000223,7]
[330892108,1719917453827,-151.0,0.000223,7]
[330892109,1719917453837,-151.0,0.000223,7]
[330892110,1719917453846,-540.586599,0.000223,7]
[330892111,1719917453855,-433.033538,0.000223,7]
[330892112,1719917453864,-540.586599,0.000223,7]
[330892113,1719917453874,-433.033538,0.000223,7]
[330892114,1719917453883,-151.0,0.000223,7]
[330892115,1719917453893,-151.0,0.000223,7]
[330892116,1719917453903,-151.0,0.000223,7]
[330892117,1719917453912,-151.0,0.000223,7]
[330892118,1719917453921,-151.0,0.000223,7]
[330892119,1719917453931,-151.0,0.000223,7]
[330892120,1719917453940,-151.0,0.000223,7]
[330892121,1719917453949,-151.0,0.000223,7]
[330892122,1719917453960,-200.270357,0.000223,7]
[330892123,1719917453971,-200.270357,0.000223,7]
[330892124,1719917453980,-285.263717,0.000223,7]
[330892125,1719917453990,-290.05922,0.000223,7]
[330892126,1719917453999,-285.263717,0.000223,7]
[330892127,1719917454008,-290.05922,0.000223,7]
[330892128,1719917454018,-3993.134411,0.000223,7]
[330892129,1719917454027,-520.347399,0.000223,7]
[330892130,1719917454036,-3993.134411,0.000223,7]
[330892131,1719917454046,-151.0,0.000223,7]
[330892132,1719917454055,-520.347399,0.000223,7]
[330892133,1719917454065,-151.0,0.000223,7]
[330892134,1719917454075,-159.349821,0.000223,7]
[330892135,1719917454084,-151.0,0.000223,7]
[330892136,1719917454094,-268.605316,0.000223,7]
[330892137,1719917454105,-151.0,0.000223,7]
[330892138,1719917454114,-213.704844,0.000223,7]
[330892139,1719917454123,-213.704844,0.000223,7]
[330892140,1719917454133,-151.0,0.000223,7]
[330892141,1719917454142,-334.515759,0.000223,7]
[330892142,1719917454152,-334.515759,0.000223,7]
[330892143,1719917454161,-151.0,0.000223,7]
[330892144,1719917454171,-3061.267064,0.000223,7]
[330892145,1719917454181,-3061.267064,0.000223,7]
[330892146,1719917454190,-151.0,0.000223,7]
[330892147,1719917454200,-151.0,0.000223,7]
[330892148,1719917454209,-763.78199214,0.00022303,2]
[330892149,1719917454218,-150.0,0.00022313,4]
[330892150,1719917454227,-150.0,0.0002232,4]
[330892151,1719917454237,-222.61729304,0.00022329,5]
[330892152,1719917454246,-154.79295098,0.0002234,2]
[330892153,1719917454255,-5000.0,0.00022347,2]
[330892154,1719917454265,-244.070215,0.00022348,2]
[330892155,1719917454274,-157.070215,0.00022348,2]
[330892156,1719917454284,-157.070215,0.00022348,2]
[330892157,1719917454293,-157.070215,0.00022348,2]
[330892158,1719917454302,-157.070215,0.00022348,2]
[330892159,1719917454353,-157.070215,0.00022348,2]
[330892160,1719917454363,-157.070215,0.00022348,2]
[330892161,1719917454373,-157.070215,0.00022348,2]
[330892162,1719917454382,-157.070215,0.00022348,2]
[330892163,1719917454391,-800.0,0.00022384,2]
[330892164,1719917454400,-800.0,0.00022384,2]
[330892165,1719917454409,-800.0,0.00022384,2]
[330892166,1719917454418,-800.0,0.00022384,2]
[330892167,1719917454427,-150.9358062,0.00022397,2]
[330892168,1719917454436,-160.60292822,0.00022398,2]
[330892169,1719917454445,-1000.0,0.000224,2]
[330892170,1719917454454,-1000.0,0.000224,2]
[330892171,1719917454463,-1000.0,0.000224,2]
[330892172,1719917454472,-1000.0,0.000224,2]
[330892173,1719917454482,-1000.0,0.000224,2]
[330892174,1719917454492,-1000.0,0.000224,2]
[330892175,1719917454504,-1000.0,0.000224,2]
[330892176,1719917454514,-1000.0,0.000224,2]
[330892177,1719917454523,-1000.0,0.000224,2]
[330892178,1719917454532,-1000.0,0.000224,2]
[330892179,1719917454541,-2000.0,0.000224,2]
[330892180,1719917454550,-1128.0,0.000224,10]
[330892181,1719917454560,-2000.0,0.000224,2]
[330892182,1719917454569,-982.0,0.000224,5]
[330892183,1719917454578,-166.66666666,0.00022407,2]
[330892184,1719917454587,-150.0,0.0002241,4]
[330892185,1719917454596,-222.61729304,0.00022411,5]
[330892186,1719917454605,-4681.94,0.00022417,2]
[330892187,1719917454614,-152.46795825,0.00022421,2]
[330892188,1719917454624,-160.60292822,0.00022432,2]
[330892189,1719917454633,-47735.45438276,0.00022433,2]
[330892190,1719917454642,-150.0,0.00022436,2]
[330892191,1719917454651,-5100.0,0.0002244,3]
[330892192,1719917454661,-5100.0,0.0002244,5]
[330892193,1719917454671,-5100.0,0.0002244,7]
[330892194,1719917454681,-3000.0,0.0002244,2]
[330892195,1719917454691,-160.60292829,0.00022441,2]
[330892196,1719917454702,-763.78199214,0.00022447,2]
[330892197,1719917454712,-151.12285891,0.00022459,2]
[330892198,1719917454722,-1000.0,0.00022465,10]
[330892199,1719917454735,-500.0,0.00022465,4]
[330892200,1719917454744,-500.0,0.00022465,4]
[330892201,1719917454753,-500.0,0.00022465,4]
[330892202,1719917454762,-268.16107545,0.00022465,4]
[330892203,1719917454772,-458.357487,0.00022465,2]
[330892204,1719917454783,-485.09694421,0.00022465,4]
[330892205,1719917454793,-416.23200009,0.00022465,4]
[330892206,1719917454802,-500.0,0.00022465,4]
[330892207,1719917454811,-1000.0,0.00022465,2]
[330892208,1719917454820,-1000.0,0.00022465,2]
[330892209,1719917454830,-1000.0,0.00022465,2]
[330892210,1719917454839,-500.0,0.00022465,4]
[330892211,1719917454848,-500.0,0.00022465,4]
[330892212,1719917454858,-500.0,0.00022465,2]
[330892213,1719917454867,-500.0,0.00022465,2]
[330892214,1719917454876,-280.10317023,0.00022465,4]
[330892215,1719917454886,-500.0,0.00022465,4]
[330892216,1719917454895,-517.17425706,0.00022465,4]
[330892217,1719917454904,-509.56,0.00022465,4]
[330892218,1719917454913,-500.0,0.00022465,4]
[330892219,1719917454923,-500.0,0.00022465,2]
[330892220,1719917454932,-500.0,0.00022465,2]
[330892221,1719917454941,-500.0,0.00022465,2]
[330892222,1719917454950,-500.94987328,0.00022465,2]
[330892223,1719917454959,-500.0,0.00022465,4]
[330892224,1719917454969,-500.0,0.00022465,4]
[330892225,1719917454980,-500.0,0.00022465,4]
[330892226,1719917454989,-500.0,0.00022465,4]
[330892227,1719917454999,-500.0,0.00022465,4]
[330892228,1719917455007,-500.0,0.00022465,4]
[330892229,1719917455017,-500.0,0.00022465,4]
[330892230,1719917455027,-300.72,0.00022465,4]
[330892231,1719917455036,-191.4847811,0.00022465,4]
[330892232,1719917455045,-500.0,0.00022465,4]
[330892233,1719917455054,-500.0,0.00022465,4]
[330892234,1719917455063,-500.0,0.00022465,4]
[330892235,1719917455072,-500.0,0.00022465,4]
[330892236,1719917455082,-500.0,0.00022465,4]
[330892237,1719917455091,-500.0,0.00022465,4]
[330892238,1719917455100,-500.0,0.00022465,4]
[330892239,1719917455109,-500.0,0.00022465,4]
[330892240,1719917455118,-500.0,0.00022465,4]
[330892241,1719917455127,-500.0,0.00022465,4]
[330892242,1719917455136,-521.84,0.00022465,4]
[330892243,1719917455145,-500.0,0.00022465,4]
[330892244,1719917455154,-500.0,0.00022465,4]
[330892245,1719917455163,-500.0,0.00022465,4]
[330892246,1719917455172,-500.0,0.00022465,4]
[330892247,1719917455182,-500.0,0.00022465,4]
[330892248,1719917455192,-500.0,0.00022465,4]
[330892249,1719917455201,-500.0,0.00022465,4]
[330892250,1719917455210,-500.0,0.00022465,4]
[330892251,1719917455219,-500.0,0.00022465,4]
[330892252,1719917455229,-190.44,0.00022465,4]
[330892253,1719917455239,-500.0,0.00022465,4]
[330892254,1719917455248,-501.75161851,0.00022465,4]
[330892255,1719917455258,-500.0,0.00022465,2]
[330892256,1719917455267,-612.98850433,0.00022465,2]
[330892257,1719917455275,-500.0,0.00022465,4]
[330892258,1719917455285,-500.0,0.00022465,4]
[330892259,1719917455294,-500.0,0.00022465,4]
[330892260,1719917455304,-500.0,0.00022465,4]
[330892261,1719917455313,-528.02,0.00022465,4]
[330892262,1719917455322,-500.0,0.00022465,4]
[330892263,1719917455331,-500.0,0.00022465,4]
[330892264,1719917455340,-502.24310481,0.00022465,4]
[330892265,1719917455349,-500.0,0.00022465,2]
[330892266,1719917455358,-500.0,0.00022465,2]
[330892267,1719917455367,-500.0,0.00022465,2]
[330892268,1719917455377,-500.0,0.00022465,2]
[330892269,1719917455386,-500.0,0.00022465,2]
[330892270,1719917455395,-500.0,0.00022465,4]
[330892271,1719917455404,-500.0,0.00022465,4]
[330892272,1719917455413,-500.0,0.00022465,4]
[330892273,1719917455422,-500.0,0.00022465,4]
[330892274,1719917455431,-150.0,0.00022465,4]
[330892275,1719917455440,-500.0,0.00022465,4]
[330892276,1719917455450,-500.0,0.00022465,4]
[330892277,1719917455460,-604.05941118,0.00022465,4]
[330892278,1719917455469,-500.0,0.00022465,4]
[330892279,1719917455479,-500.0,0.00022465,4]
[330892280,1719917455488,-500.0,0.00022465,4]
[330892281,1719917455498,-500.0,0.00022465,4]
[330892282,1719917455507,-500.0,0.00022465,4]
[330892283,1719917455516,-500.0,0.00022465,4]
[330892284,1719917455525,-500.0,0.00022465,4]
[330892285,1719917455535,-500.0,0.00022465,4]
[330892286,1719917455544,-548.62,0.00022465,4]
[330892287,1719917455553,-500.0,0.00022465,2]
[330892288,1719917455562,-646.41377237,0.00022465,2]
[330892289,1719917455571,-500.0,0.00022465,4]
[330892290,1719917455581,-500.0,0.00022465,4]
[330892291,1719917455590,-500.0,0.00022465,4]
[330892292,1719917455599,-500.0,0.00022465,4]
[330892293,1719917455608,-500.0,0.00022465,4]
[330892294,1719917455617,-500.0,0.00022465,4]
[330892295,1719917455627,-269.93,0.00022465,4]
[330892296,1719917455636,-500.0,0.00022465,4]
[330892297,1719917455645,-500.0,0.00022465,4]
[330892298,1719917455654,-500.0,0.00022465,4]
[330892299,1719917455664,-500.37047833,0.00022465,2]
[330892300,1719917455673,-500.0,0.00022465,4]
[330892301,1719917455682,-500.0,0.00022465,4]
[330892302,1719917455692,-500.0,0.00022465,4]
[330892303,1719917455704,-500.0,0.00022465,4]
[330892304,1719917455714,-245.91,0.00022465,4]
[330892305,1719917455723,-500.0,0.00022465,4]
[330892306,1719917455735,-500.0,0.00022465,4]
[330892307,1719917455744,-500.0,0.00022465,4]
[330892308,1719917455753,-500.0,0.00022465,4]
[330892309,1719917455763,-500.0,0.00022465,4]
[330892310,1719917455772,-1367.54,0.00022465,4]
[330892311,1719917455784,-1367.54,0.00022465,4]
[330892312,1719917455793,-1367.54,0.00022465,4]
[330892313,1719917455803,-1367.54,0.00022465,4]
[330892314,1719917455812,-1367.54,0.00022465,4]
[330892315,1719917455821,-1367.54,0.00022465,4]
[330892316,1719917455830,-1367.54,0.00022465,4]
[330892317,1719917455840,-500.0,0.00022465,4]
[330892318,1719917455849,-1367.54,0.00022465,4]
[330892319,1719917455859,-1367.54,0.00022465,4]
[330892320,1719917455868,-1367.54,0.00022465,4]
[330892321,1719917455877,-1367.54,0.00022465,4]
[330892322,1719917455886,-1367.54,0.00022465,4]
[330892323,1719917455895,-1367.54,0.00022465,4]
[330892324,1719917455904,-1367.54,0.00022465,4]
[330892325,1719917455913,-1367.54,0.00022465,4]
[330892326,1719917455923,-1367.54,0.00022465,4]
[330892327,1719917455932,-1367.54,0.00022465,4]
[330892328,1719917455941,-1367.54,0.00022465,4]
[330892329,1719917455951,-507.36,0.00022465,4]
[330892330,1719917455961,-1367.54,0.00022465,4]
[330892331,1719917455970,-507.36,0.00022465,4]
[330892332,1719917455981,-1367.54,0.00022465,4]
[330892333,1719917455991,-1367.54,0.00022465,4]
[330892334,1719917456000,-507.36,0.00022465,4]
[330892335,1719917456009,-1367.54,0.00022465,4]
[330892336,1719917456018,-507.36,0.00022465,4]
[330892337,1719917456027,-1367.54,0.00022465,4]
[330892338,1719917456036,-507.36,0.00022465,4]
[330892339,1719917456046,-1367.58929298,0.00022465,4]
[330892340,1719917456056,-507.36,0.00022465,4]
[330892341,1719917456065,-507.36,0.00022465,4]
[330892342,1719917456075,-507.36,0.00022465,4]
[330892343,1719917456084,-507.36,0.00022465,4]
[330892344,1719917456093,-507.36,0.00022465,4]
[330892345,1719917456103,-507.36,0.00022465,4]
[330892346,1719917456112,-507.36,0.00022465,4]
[330892347,1719917456121,-507.36,0.00022465,4]
[330892348,1719917456131,-507.36,0.00022465,4]
[330892349,1719917456141,-507.36,0.00022465,4]
[330892350,1719917456151,-507.36,0.00022465,4]
[330892351,1719917456160,-507.36,0.00022465,4]
[330892352,1719917456169,-500.0,0.00022465,4]
[330892353,1719917456178,-507.36,0.00022465,4]
[330892354,1719917456187,-507.36,0.00022465,4]
[330892355,1719917456197,-507.36,0.00022465,4]
[330892356,1719917456207,-507.36,0.00022465,4]
[330892357,1719917456215,-507.36,0.00022465,4]
[330892358,1719917456229,-14180.23653894,0.00022465,2]
[330892359,1719917456239,-507.36,0.00022465,4]
[330892360,1719917456249,-507.47972126,0.00022465,4]
[330892361,1719917456258,-500.0,0.00022465,4]
[330892362,1719917456268,-500.0,0.00022465,4]
[330892363,1719917456277,-500.0,0.00022465,4]
[330892364,1719917456287,-500.0,0.00022465,4]
[330892365,1719917456296,-500.0,0.00022465,4]
[330892366,1719917456306,-500.0,0.00022465,4]
[330892367,1719917456316,-500.0,0.00022465,4]
[330892368,1719917456325,-500.0,0.00022465,4]
[330892369,1719917456335,-500.0,0.00022465,4]
[330892370,1719917456344,-16883.05,0.00022465,4]
[330892371,1719917456355,-500.0,0.00022465,4]
[330892372,1719917456364,-500.0,0.00022465,4]
[330892373,1719917456374,-500.0,0.00022465,4]
[330892374,1719917456385,-16883.05,0.00022465,4]
[330892375,1719917456394,-500.0,0.00022465,4]
[330892376,1719917456407,-500.0,0.00022465,4]
[330892377,1719917456416,-16883.05,0.00022465,4]
[330892378,1719917456426,-500.0,0.00022465,4]
[330892379,1719917456435,-614.38076887,0.00022465,4]
[330892380,1719917456445,-16883.05,0.00022465,4]
[330892381,1719917456455,-16883.05,0.00022465,4]
[330892382,1719917456467,-16883.05,0.00022465,4]
[330892383,1719917456477,-16883.05,0.00022465,4]
[330892384,1719917456488,-16883.05,0.00022465,4]
[330892385,1719917456497,-500.0,0.00022465,4]
[330892386,1719917456507,-500.0,0.00022465,4]
[330892387,1719917456518,-16883.05,0.00022465,4]
[330892388,1719917456527,-500.0,0.00022465,2]
[330892389,1719917456537,-500.0,0.00022465,2]
[330892390,1719917456547,-16883.05,0.00022465,4]
[330892391,1719917456557,-500.0,0.00022465,2]
[330892392,1719917456567,-16883.05,0.00022465,4]
[330892393,1719917456577,-500.0,0.00022465,2]
[330892394,1719917456587,-500.0,0.00022465,2]
[330892395,1719917456597,-16883.05,0.00022465,4]
[330892396,1719917456607,-500.0,0.00022465,2]
[330892397,1719917456616,-500.0,0.00022465,4]
[330892398,1719917456625,-500.0,0.00022465,2]
[330892399,1719917456635,-319.35,0.00022465,4]
[330892400,1719917456645,-500.0,0.00022465,2]
[330892401,1719917456654,-500.0,0.00022465,2]
[330892402,1719917456663,-494.9907984,0.00022465,2]
[330892403,1719917456673,-16883.05,0.00022465,4]
[330892404,1719917456682,-500.0,0.00022465,4]
[330892405,1719917456692,-500.0,0.00022465,4]
[330892406,1719917456704,-500.0,0.00022465,4]
[330892407,1719917456713,-500.0,0.00022465,4]
[330892408,1719917456723,-16883.05,0.00022465,4]
[330892409,1719917456732,-500.0,0.00022465,4]
[330892410,1719917456742,-500.0,0.00022465,4]
[330892411,1719917456753,-501.70597389,0.00022465,4]
[330892412,1719917456766,-16883.05,0.00022465,4]
[330892413,1719917456776,-4873.45964866,0.00022465,4]
[330892414,1719917457191,-150.99,0.00014666,2]
[330892415,1719917457201,-155.0,0.00019229,2]
[330892416,1719917457211,-227.09542874,0.00019229,2]
[330892417,1719917457221,-194.34767552,0.00019299,2]
[330892418,1719917457230,-12009.59035134,0.00022465,4]
[330892419,1719917457239,-1937.09095209,0.00022465,4]
[330892420,1719917457274,-14945.95904791,0.00022465,4]
[330892421,1719917457283,-500.0,0.00022465,4]
[330892422,1719917457292,-16883.05,0.00022465,4]
[330892423,1719917457301,-16883.05,0.00022465,4]
[330892424,1719917457310,-500.0,0.00022465,4]
[330892425,1719917457320,-500.0,0.00022465,4]
[330892426,1719917457329,-500.0,0.00022465,4]
[330892427,1719917457339,-16883.05,0.00022465,4]
[330892428,1719917457349,-500.0,0.00022465,4]
[330892429,1719917457358,-500.0,0.00022465,4]
[330892430,1719917457368,-16883.05,0.00022465,4]
[330892431,1719917457377,-500.0,0.00022465,4]
[330892432,1719917457387,-500.0,0.00022465,4]
[330892433,1719917457396,-16883.05,0.00022465,4]
[330892434,1719917457405,-500.0,0.00022465,4]
[330892435,1719917457415,-16883.05,0.00022465,4]
[330892436,1719917457424,-500.0,0.00022465,4]
[330892437,1719917457434,-327.24,0.00022465,4]
[330892438,1719917457444,-16883.12339822,0.00022465,4]
[330892439,1719917457454,-500.0,0.00022465,4]
[330892440,1719917457463,-610.4,0.00022465,4]
[330892441,1719917457472,-500.0,0.00022465,2]
[330892442,1719917457482,-500.0,0.00022465,4]
[330892443,1719917457492,-500.0,0.00022465,2]
[330892444,1719917457501,-500.0,0.00022465,2]
[330892445,1719917457510,-502.51759043,0.00022465,2]
[330892446,1719917457519,-500.0,0.00022465,4]
[330892447,1719917457529,-500.0,0.00022465,4]
[330892448,1719917457538,-510.86,0.00022465,4]
[330892449,1719917457547,-895.53,0.00022465,4]
[330892450,1719917457557,-500.0,0.00022465,4]
[330892451,1719917457566,-895.53,0.00022465,4]
[330892452,1719917457575,-895.53,0.00022465,4]
[330892453,1719917457584,-895.53,0.00022465,4]
[330892454,1719917457593,-895.53,0.00022465,4]
[330892455,1719917457603,-895.53,0.00022465,4]
[330892456,1719917457612,-500.0,0.00022465,4]
[330892457,1719917457622,-895.53,0.00022465,4]
[330892458,1719917457631,-895.53,0.00022465,4]
[330892459,1719917457641,-895.53,0.00022465,4]
[330892460,1719917457651,-895.53,0.00022465,4]
[330892461,1719917457660,-895.53,0.00022465,4]
[330892462,1719917457670,-500.0,0.00022465,4]
[330892463,1719917457679,-895.53,0.00022465,4]
[330892464,1719917457688,-895.53,0.00022465,4]
[330892465,1719917457703,-895.53,0.00022465,4]
[330892466,1719917457713,-500.0,0.00022465,4]
[330892467,1719917457722,-135.41838333,0.00022465,4]
[330892486,1719918062462,205.0,0.00024658,120]
[330892520,1719918632184,-585.0,0.00013899,2]
[330892521,1719918632194,-457.5,0.00013999,2]
[330892522,1719918632208,-165.6312429,0.00013999,2]
[330892524,1719918632218,-500.0,0.00015101,2]
[330892525,1719918632227,-913.0,0.000163,2]
[330892526,1719918632236,-500.0,0.00016745,2]
[330892527,1719918632245,-196.058,0.0001712,2]
[330892528,1719918632255,-278.734,0.0001712,2]
[330892529,1719918632264,-263.739,0.0001712,2]
[330892530,1719918632274,-200.0,0.0001712,2]
[330892531,1719918632283,-637.02,0.00017234,2]
[330892532,1719918632293,-4945.42152925,0.00017449,2]
[330892533,1719918632302,-20654.12824528,0.00017449,2]
[330892534,1719918632512,-2231.96012977,0.00017449,2]
[330892535,1719918632525,-351.70158978,0.00017449,2]
[330892539,1719918632591,-14983.21003517,0.00017449,2]
[330892541,1719918632601,-999.99,0.00017534,2]
[330892542,1719918632610,-409.83,0.00017808,2]
[330892544,1719918632619,-499.99,0.00017808,2]
[330892546,1719918632629,-533.06600792,0.00017841,2]
[330892547,1719918632638,-5000.0,0.00017999,2]
[330892548,1719918632648,-774.03495868,0.00018899,2]
[330892549,1719918632657,-533.43075893,0.00018899,2]
[330892550,1719918632666,-412.73865454,0.00018919,2]
[330892551,1719918632675,-263.41362794,0.00018919,2]
[330892552,1719918632685,-461.65351825,0.00018919,2]
[330892553,1719918632694,-155.0,0.00018999,2]
[330892554,1719918632703,-161.26957131,0.0001904,2]
[330892555,1719918632713,-1236.84,0.00019046,2]
[330892556,1719918632723,-227.09542874,0.00019069,2]
[330892557,1719918632733,-227.09542874,0.00019077,2]
[330892558,1719918632742,-323.62,0.00019136,30]
[330892559,1719918632752,-200.0,0.00019141,2]
[330892560,1719918632762,-250.0,0.00019155,2]
[330892561,1719918632772,-250.0,0.00019156,2]
[330892562,1719918632781,-500.0,0.00019166,2]
[330892563,1719918632791,-250.0,0.00019178,2]
[330892564,1719918632801,-150.0,0.00019219,2]
[330892565,1719918632810,-2000.0,0.00019244,3]
[330892566,1719918632820,-305.42303826,0.00019299,2]
[330892567,1719918632829,-374.28510014,0.00019299,2]
[330892568,1719918632839,-1080.27,0.00019309,2]
[330892569,1719918632848,-267.66176162,0.00019339,2]
[330892570,1719918632861,-42.94823838,0.00019339,2]
[330892571,1719918632870,-369.29403955,0.00019352,2]
[330892572,1719918632879,-296.0555656,0.00019352,2]
[330892573,1719918632888,-152.75639843,0.00019391,2]
[330892574,1719918632898,-150.13,0.00019403,2]
[330892575,1719918632907,-637.02,0.00019498,2]
[330892576,1719918632916,-2500.0,0.000195,2]
[330892577,1719918632926,-155.0,0.00019548,2]
[330892578,1719918632935,-4568.70394128,0.00019578,2]
[330892579,1719918632946,-503.14185586,0.00019578,2]
[330892580,1719918632957,-553.5812655,0.00019578,2]
[330892581,1719918632969,-361.15942254,0.00019578,2]
[330892583,1719918632981,-3292.57746853,0.00019578,2]
[330892585,1719918632995,-6313.0,0.00019578,2]
[330892587,1719918633007,-1112.31933435,0.00019578,2]
[330892594,1719918638414,-4440.54135517,0.00019578,2]
[330892601,1719918640566,-370.55,0.00019578,2]
[330892602,1719918640578,-697.87064061,0.00019578,2]
[330892603,1719918640589,-1686.55471616,0.00019578,2]
[330892604,1719918640599,-197.9620184,0.00019585,2]
[330892605,1719918640611,-3.1279816,0.00019585,2]
[330892606,1719918640620,-150.13,0.00019606,2]
[330892607,1719918640629,-192.2870184,0.00019647,2]
[330892608,1719918640641,-1952.6529816,0.00019647,2]
[330892609,1719918640650,-1000.0,0.00019697,2]
[330892610,1719918640659,-1489.71,0.00019723,2]
[330892611,1719918640669,-1107.47,0.00019737,2]
[330892612,1719918640678,-150.13,0.00019808,2]
[330892613,1719918640687,-177.51,0.00019844,2]
[330892614,1719918640696,-152.75639843,0.00019939,2]
[330892615,1719918640705,-150.13,0.0002001,2]
[330892616,1719918640714,-150.0,0.0002012,2]
[330892617,1719918640723,-150.13,0.00020212,2]
[330892618,1719918640733,-150.13,0.00020414,2]
[330892619,1719918640741,-38221.0,0.00020449,2]
[330892620,1719918640751,-190.39095063,0.000205,2]
[330892621,1719918640760,-152.0,0.00020608,3]
[330892622,1719918640770,-1250.0,0.00021,2]
[330892623,1719918640779,-203.15956,0.00021,2]
[330892624,1719918640789,-218.0,0.0002162,3]
[330892625,1719918640799,-152.75639843,0.00021736,2]
[330892626,1719918640808,-637.02,0.00021762,2]
[330892627,1719918640817,-760.0,0.00021825,2]
[330892628,1719918640827,-1003.14,0.000219,2]
[330892629,1719918640837,-317.2,0.000219,2]
[330892630,1719918640847,-500.0,0.00021917,2]
[330892631,1719918640856,-981.03,0.00021918,2]
[330892632,1719918640866,-152.15,0.00021918,2]
[330892633,1719918640875,-156.59,0.00021918,2]
[330892634,1719918640885,-150.14,0.00021918,2]
[330892635,1719918640894,-3236.17981405,0.00021938,2]
[330892636,1719918640904,-500.0,0.00021973,2]
[330892637,1719918640913,-500.0,0.00021981,2]
[330892638,1719918640923,-500.0,0.0002199,2]
[330892639,1719918640932,-500.0,0.00021999,2]
[330892640,1719918640942,-500.0,0.00021999,2]
[330892641,1719918640951,-12764.2095809,0.00022015,3]